bitfinex-derivatives/quotes_ETHF0:USTF0_20251005
["timestamp","ask_amount","ask_price","bid_price","bid_amount"]
[1759703097467,0.7426,4517.4,4517.3,1.07234]
[1759703097666,0.7426,4517.4,4517.3,1.38094]
[1759703098270,0.4224,4517.4,4517.3,1.38094]
[1759703099277,0.4224,4517.4,4517.3,2.96143753]
[1759703099671,0.4224,4517.4,4517.3,2.73943753]
[1759703099873,0.2149,4517.4,4517.3,2.96143753]
[1759703100173,0.2149,4517.4,4517.3,1.38094]
[1759703100972,0.2149,4517.7,4517.6,1.15892]
[1759703101169,0.2397477,4517.9,4517.8,1.1589]
[1759703101369,0.0248477,4517.9,4517.8,1.1589]
[1759703102366,3.4227,4518.5,4518.4,0.7606]
[1759703102571,3.4227,4518.5,4518.4,0.9836]
[1759703102572,0.2149,4518.5,4518.4,0.9836]
[1759703102773,0.2149,4518.7,4518.6,0.7606]
[1759703103473,0.21665878,4518.7,4518.6,0.7606]
[1759703110182,0.74435878,4518.7,4518.6,0.7606]
[1759703110580,0.42415878,4518.7,4518.6,0.7606]
[1759703110780,0.21665878,4518.7,4518.6,0.7606]
[1759703111486,0.74435878,4518.7,4518.6,0.7606]
[1759703113186,1.52812191,4518.7,4518.6,0.7606]
[1759703115088,1.52812191,4518.7,4518.6,0.5341]
[1759703115689,1.52812191,4518.7,4518.6,0.7561]
[1759703116581,0.39826,4518.3,4518.2,1.58109499]
[1759703116782,1.92462313,4518.3,4518.2,2.02859499]
[1759703117281,1.92462313,4518.3,4518.2,2.33719499]
[1759703117685,1.92462313,4518.3,4518.2,0.7561]
[1759703118982,0.7473,4518.2,4518.1,1.58109499]
[1759703119184,0.7473,4518.2,4518.1,1.80309499]
[1759703119490,0.7473,4518.2,4518.1,0.5622]
[1759703120485,0.7473,4518.2,4518.1,0.7763]
[1759703120697,0.7473,4518.2,4518.1,2.58449499]
[1759703120889,0.7473,4518.2,4518.1,1.0034]
[1759703121393,0.4364,4518.2,4518.1,1.0034]
[1759703121595,0.2251,4518.2,4518.1,2.58449499]
[1759703122693,0.2251,4518.2,4518.1,2.64256499]
[1759703122886,0.2251,4518.2,4518.1,0.6632]
[1759703123082,0.7473,4518.2,4518.1,2.24429499]
[1759703123287,0.7473,4518.2,4518.1,1.0034]
[1759703123787,0.7473,4518.2,4518.1,0.7814]
[1759703123990,0.7473,4518.2,4518.1,1.0034]
[1759703124390,0.7473,4518.2,4518.1,0.7814]
[1759703124599,0.7473,4518.2,4518.1,1.0034]
[1759703125193,0.7473,4518.2,4518.1,0.5543]
[1759703125495,0.78376313,4518.4,4517.8,2.02229499]
[1759703125496,0.7473,4517.9,4517.8,2.02229499]
[1759703125692,1.92935313,4517.9,4517.8,2.24429499]
[1759703125996,1.22016313,4517.9,4517.8,2.58449499]
[1759703126390,1.00886313,4517.9,4517.8,2.58449499]
[1759703127896,0.7473,4518.1,4518.0,0.5682]
[1759703128095,1.53106313,4518.1,4518.0,0.6632]
[1759703128297,1.53106313,4518.1,4518.0,1.0034]
[1759703128797,1.53106313,4518.1,4518.0,0.5673]
[1759703128997,0.3983,4517.8,4517.7,1.58109499]
[1759703129305,0.4364,4517.7,4517.6,2.02229499]
[1759703129600,3.2078,4518.5,4518.4,1.17965]
[1759703129801,0.78376313,4518.9,4518.6,0.7814]
[1759703130101,0.78376313,4518.9,4518.6,1.0034]
[1759703130800,1.18196313,4518.9,4518.6,1.0034]
[1759703131001,0.78376313,4518.9,4518.6,1.0034]
[1759703131902,3.2078,4519.0,4518.6,1.0034]
[1759703132098,0.78376313,4519.4,4518.6,2.58567164]
[1759703132295,0.78376313,4519.4,4518.6,1.0034]
[1759703134498,1.18192313,4519.4,4518.6,1.0034]
[1759703134703,0.39819,4519.1,4518.6,1.0034]
[1759703135296,0.39819,4519.1,4518.6,2.58366273]
[1759703136004,1.18195313,4519.1,4518.6,2.58366273]
[1759703136506,0.3982,4519.0,4518.6,2.58366273]
[1759703136694,0.39821,4518.9,4518.6,2.58366273]
[1759703137596,0.39821,4518.9,4518.6,2.36166273]
[1759703137800,0.39821,4518.9,4518.6,2.58366273]
[1759703138496,1.18195313,4519.1,4518.6,2.58366273]
[1759703139108,0.3982,4519.0,4518.6,2.58366273]
[1759703139607,0.77115878,4518.7,4518.6,0.7814]
[1759703139804,0.77115878,4518.7,4518.6,1.0034]
[1759703140007,0.21115878,4518.7,4518.6,1.0034]
[1759703141105,0.55075878,4518.7,4518.6,1.0034]
[1759703141701,0.21115878,4518.7,4518.6,1.0034]
[1759703141903,0.00175878,4518.7,4518.6,1.0034]
[1759703143201,0.00175878,4518.7,4518.6,0.7814]
[1759703143702,0.00175878,4518.7,4518.6,1.0034]
[1759703144206,0.21115878,4518.7,4518.6,1.0034]
[1759703144402,0.77115878,4518.7,4518.6,0.7814]
[1759703144608,0.77115878,4518.7,4518.6,1.0034]
[1759703147807,0.77115878,4518.7,4518.6,0.7814]
[1759703148007,0.77115878,4518.7,4518.5,0.5546]
[1759703148008,1.12993,4518.6,4518.5,0.5546]
[1759703148402,1.12993,4518.6,4518.5,0.7766]
[1759703149402,1.12993,4518.6,4518.5,0.5546]
[1759703149812,1.12997,4518.1,4518.0,0.5729]
[1759703150113,1.91373313,4518.1,4518.0,0.7949]
[1759703150409,1.91373313,4518.1,4518.0,1.1279]
[1759703150604,1.91373313,4518.1,4518.0,0.9059]
[1759703150809,1.91373313,4518.1,4517.4,1.96012657]
[1759703150810,0.4239,4517.7,4517.4,1.58026273]
[1759703150998,0.1261,4518.0,4517.2,0.5546]
[1759703150999,0.82224,4517.3,4517.2,0.5546]
[1759703151199,0.4239,4517.3,4517.2,1.0009]
[1759703151404,0.7317,4517.3,4517.2,1.0009]
[1759703154515,0.7317,4517.3,4517.2,0.7766]
[1759703155610,0.39834,4517.4,4517.2,0.6679]
[1759703155804,0.39834,4517.4,4517.3,0.7789]
[1759703156004,0.61504,4517.4,4517.3,0.7789]
[1759703156208,1.13004,4517.4,4517.3,0.7789]
[1759703156415,1.13004,4517.4,4517.3,0.333]
[1759703156619,1.13004,4517.4,4517.3,0.5546]
[1759703156916,1.91380313,4517.4,4517.3,0.5546]
[1759703161219,1.91380313,4517.4,4516.5,0.70243794]
[1759703161220,6.51546313,4517.4,4516.7,0.333]
[1759703161515,1.91384313,4516.9,4516.8,0.7789]
[1759703161911,1.91384313,4516.9,4516.5,0.5546]
[1759703161912,4.50656313,4516.9,4516.5,0.5546]
[1759703162117,1.91387313,4516.6,4516.5,0.5546]
[1759703162313,1.91387313,4516.6,4516.5,0.7766]
[1759703163216,1.13015,4516.1,4516.0,0.57720078]
[1759703163523,1.91391313,4516.1,4516.0,0.79920078]
[1759703163823,1.91391313,4516.1,4516.0,1.13220078]
[1759703164021,1.91391313,4516.1,4516.0,0.78150078]
[1759703164221,1.91391313,4516.1,4516.0,0.55720078]
[1759703164412,1.91391313,4516.1,4516.0,0.33560078]
[1759703164819,0.7317,4516.1,4516.0,0.78150078]
[1759703165121,0.7317,4516.1,4516.0,0.91020078]
[1759703168225,0.2167,4516.1,4516.0,0.91020078]
[1759703169928,0.7317,4516.1,4516.0,0.78150078]
[1759703171827,0.7317,4516.1,4516.0,0.00260078]
[1759703172020,0.7317,4516.1,4516.0,0.78150078]
[1759703172221,0.7317,4516.1,4516.0,0.91020078]
[1759703175729,0.7317,4516.1,4516.0,0.00260078]
[1759703176232,0.39852,4515.3,4515.2,0.222]
[1759703176428,0.39852,4515.3,4515.2,0.4436]
[1759703176429,2.07190337,4515.3,4515.2,0.4436]
[1759703176724,2.07190337,4515.3,4515.2,0.7766]
[1759703177122,2.07351901,4515.3,4515.2,0.55688173]
[1759703177324,2.07351901,4515.3,4515.2,0.00228173]
[1759703178830,2.07351901,4515.3,4515.2,0.55678173]
[1759703183724,1.67499901,4515.3,4515.2,0.55678173]
[1759703183927,0.00161564,4515.3,4515.2,0.77618173]
[1759703184234,0.00161564,4515.3,4515.2,5.77618173]
[1759703185136,0.00161564,4515.3,4515.2,0.99818173]
[1759703185337,0.22751564,4515.3,4515.2,0.99818173]
[1759703185636,1.14703564,4515.3,4515.2,0.77618173]
[1759703185841,4.04373564,4515.3,4515.2,0.77618173]
[1759703186034,4.35483564,4515.3,4515.2,0.77618173]
[1759703186231,4.35483564,4515.3,4515.2,0.00228173]
[1759703188030,4.35483564,4515.3,4514.0,1.58026273]
[1759703188031,0.4358,4514.4,4514.0,1.58026273]
[1759703188237,0.3111,4513.8,4513.4,0.7739]
[1759703188431,1.34035337,4513.6,4513.5,0.9061]
[1759703189032,1.34035337,4513.6,4513.5,0.90831617]
[1759703189240,1.56625337,4513.6,4513.5,0.90831617]
[1759703190537,3.2078,4513.8,4513.6,0.3301]
[1759703190743,3.2078,4513.8,4513.7,0.4438]
[1759703190943,3.2078,4513.8,4513.7,0.7739]
[1759703191638,3.2078,4513.8,4513.5,0.00221617]
[1759703191639,0.39866,4513.7,4513.5,0.00221617]
[1759703191845,1.68858337,4513.6,4513.5,0.00221617]
[1759703192243,6.68858337,4513.6,4513.5,0.00221617]
[1759703192843,1.29722,4513.0,4512.9,5.12e-06]
[1759703193043,5.44670337,4513.0,4512.9,5.12e-06]
[1759703193754,5.44670337,4513.0,4512.9,0.00262372]
[1759703195255,5.44670337,4513.0,4511.4,3.2078]
[1759703195256,9.49668337,4513.0,4511.4,3.2078]
[1759703195448,0.39893,4510.7,4510.6,0.7505]
[1759703195652,1.34061337,4510.7,4510.6,0.7505]
[1759703195852,0.6215,4511.0,4510.9,0.4409]
[1759703196050,3.332,4511.5,4511.4,0.4409]
[1759703196051,3.82926,4511.5,4511.4,0.4409]
[1759703196252,3.21048335,4511.5,4511.4,0.75325892]
[1759703196460,0.00268335,4511.5,4511.4,0.75325892]
[1759703199156,0.22528335,4511.5,4511.4,0.97625892]
[1759703200760,0.00268335,4511.5,4511.4,0.97625892]
[1759703205859,0.00268335,4511.5,4511.4,1.37511892]
[1759703208468,0.00268335,4511.5,4511.4,0.97625892]
[1759703209769,0.00268335,4511.5,4511.4,0.75325892]
[1759703209770,0.22308335,4511.5,4511.4,0.75325892]
[1759703209971,0.00268335,4511.5,4511.4,0.97625892]
[1759703210172,0.00268335,4511.5,4511.4,0.75325892]
[1759703210372,0.00268335,4511.5,4511.4,0.97625892]
[1759703210670,0.00268335,4511.5,4511.4,0.75325892]
[1759703210971,0.00268335,4511.5,4511.4,0.97625892]
[1759703211667,3.2078,4512.1,4511.4,9.18405892]
[1759703211870,3.4282,4512.6,4512.5,0.8909]
[1759703212066,3.4282,4512.6,4512.5,1.1139]
[1759703212575,0.94168337,4513.0,4512.5,1.1139]
[1759703212576,1.56080337,4513.0,4512.9,0.7632]
[1759703212776,2.0871658,4513.0,4512.9,0.7632]
[1759703213677,2.0871658,4513.0,4512.9,0.5463]
[1759703215974,1.14316,4512.6,4512.5,0.7632]
[1759703216176,5.29264337,4512.6,4512.5,0.9862]
[1759703216472,3.2078,4512.6,4512.5,1.1139]
[1759703216871,3.4282,4512.6,4512.5,1.1139]
[1759703217273,3.4282,4512.6,4512.5,1.51267]
[1759703217577,3.4282,4512.6,4512.5,1.1139]
[1759703218373,3.4282,4512.6,4512.5,0.8909]
[1759703218580,3.4282,4512.6,4512.5,1.1139]
[1759703220676,3.9522,4512.6,4512.5,0.3303]
[1759703220878,0.7444,4511.6,4511.4,3.21055892]
[1759703221075,1.68608337,4511.5,4511.4,3.42655892]
[1759703221273,2.08494337,4511.5,4511.4,0.21875892]
[1759703221580,2.08494337,4511.5,4511.4,0.77205892]
[1759703222877,2.08494337,4511.5,4511.4,0.54905892]
[1759703223077,2.08494337,4511.5,4511.4,0.77205892]
[1759703223579,2.20914337,4511.5,4511.4,0.00275892]
[1759703224272,2.69521565,4511.5,4511.4,0.00275892]
[1759703225077,1.75353228,4511.5,4511.4,0.00275892]
[1759703225278,1.75353228,4511.5,4510.4,3.2078]
[1759703225279,0.7444,4510.5,4510.4,0.5463]
[1759703225474,0.7444,4510.5,4510.4,0.7693]
[1759703226279,0.7444,4510.5,4510.4,0.7721553]
[1759703227080,0.7444,4510.5,4510.4,0.0028553]
[1759703227081,0.8783,4510.5,4510.4,0.0028553]
[1759703227272,0.8783,4510.5,4510.4,0.2258553]
[1759703228075,0.4274,4510.5,4510.4,0.9890553]
[1759703228574,0.7444,4510.5,4510.4,0.9890553]
[1759703229080,0.4274,4510.5,4510.4,0.9890553]
[1759703229480,0.7444,4510.5,4510.4,0.9890553]
[1759703230875,0.7444,4510.5,4510.4,0.7660553]
[1759703231071,0.7444,4510.5,4510.4,0.9890553]
[1759703231273,0.8783,4510.5,4510.4,0.2258553]
[1759703231481,0.8783,4510.5,4510.4,0.0028553]
[1759703233880,0.8783,4510.5,4510.4,0.3331553]
[1759703234080,0.7444,4510.5,4510.4,0.5491553]
[1759703234281,0.7444,4510.5,4510.4,0.7660553]
[1759703234778,3.9522,4510.8,4510.7,0.7632]
[1759703235579,3.4282,4510.8,4510.7,0.7632]
[1759703235883,3.4282,4510.8,4510.7,0.9862]
[1759703236177,3.2078,4510.8,4510.7,0.9862]
[1759703236783,3.2078,4511.4,4510.8,0.3303]
[1759703236985,3.4282,4511.4,4511.3,0.7632]
[1759703238082,0.2238,4511.9,4511.8,0.4394]
[1759703238384,0.2238,4511.9,4511.8,0.7553]
[1759703238687,0.4342,4511.9,4511.8,0.7553]
[1759703238985,0.7555,4511.9,4511.8,0.7553]
[1759703240182,0.39883,4511.8,4511.6,0.223]
[1759703240385,0.7555,4511.7,4511.6,0.7585]
[1759703241385,0.7555,4511.7,4511.6,0.9783]
[1759703242591,0.7555,4511.7,4511.6,0.7553]
[1759703242890,0.7555,4511.7,4511.6,0.9783]
[1759703243084,0.7555,4511.7,4511.6,0.7553]
[1759703243287,0.7555,4511.7,4511.6,0.9783]
[1759703243887,0.7555,4511.7,4511.6,0.7553]
[1759703244285,0.4342,4511.7,4511.6,0.7553]
[1759703245091,1.22043466,4511.7,4511.6,0.9783]
[1759703246093,1.54173466,4511.7,4511.6,0.9783]
[1759703246787,1.54173466,4511.7,4511.6,0.7553]
[1759703247290,1.54173466,4511.7,4511.6,0.9783]
[1759703247489,1.22043466,4511.7,4511.6,0.9783]
[1759703247692,1.22043466,4511.7,4511.6,0.7553]
[1759703247988,1.01003466,4512.0,4511.9,0.4394]
[1759703248294,1.01003466,4512.0,4511.9,0.7553]
[1759703248484,1.01003466,4512.0,4511.9,0.9783]
[1759703249294,1.54173466,4512.0,4511.9,0.9783]
[1759703251198,2.06464466,4512.0,4511.4,0.3159]
[1759703251398,1.33133466,4511.6,4511.5,1.1148]
[1759703251699,1.01003466,4511.6,4511.5,1.1148]
[1759703252298,0.3213,4511.9,4511.5,1.1148]
[1759703252498,0.78623466,4511.7,4511.6,0.7553]
[1759703253188,0.78623466,4512.0,4511.6,3.6472]
[1759703253396,0.2148,4512.2,4512.1,0.7504]
[1759703253593,1.00103466,4512.4,4512.3,0.7504]
[1759703254200,0.78623466,4512.4,4512.3,0.7504]
[1759703254396,3.2078,4512.6,4512.4,0.39878]
[1759703254601,3.2078,4512.6,4512.5,0.8784]
[1759703254900,3.4226,4512.6,4512.5,0.8784]
[1759703255302,0.2148,4512.6,4512.5,0.8784]
[1759703255896,3.9733,4512.6,4512.5,1.1014]
[1759703256104,3.9733,4512.6,4512.5,0.9734]
[1759703257595,3.9733,4512.6,4512.5,0.7504]
[1759703257800,3.9733,4512.6,4512.5,0.9734]
[1759703258206,3.9733,4512.6,4512.5,1.1014]
[1759703258507,3.6443,4512.6,4512.5,1.1014]
[1759703258703,3.2078,4512.6,4512.5,1.1014]
[1759703260114,3.4226,4512.6,4512.5,1.1014]
[1759703261114,0.2148,4512.6,4512.5,1.1014]
[1759703261911,1.22509709,4513.0,4512.9,0.7504]
[1759703264202,1.55409709,4513.0,4512.9,0.7504]
[1759703264402,1.00339709,4513.0,4512.9,0.7504]
[1759703264914,1.33239709,4513.0,4512.9,0.7504]
[1759703265114,1.55409709,4513.0,4512.9,0.7504]
[1759703267516,1.68689709,4513.0,4512.9,0.223]
[1759703267820,1.68689709,4513.0,4512.9,0.7431]
[1759703268719,0.43736243,4513.0,4512.9,0.9609]
[1759703268920,0.21266243,4513.0,4512.9,0.9609]
[1759703269611,0.75946243,4513.0,4512.9,0.9609]
[1759703270027,0.75946243,4513.0,4512.9,0.7379]
[1759703270215,0.75946243,4513.0,4512.9,0.9609]
[1759703270521,0.75946243,4513.0,4512.9,0.7379]
[1759703271216,0.75946243,4513.0,4512.9,0.9609]
[1759703275413,0.75946243,4513.0,4512.9,0.7379]
[1759703275617,0.75946243,4513.0,4512.9,0.9609]
[1759703276921,0.75946243,4513.0,4512.9,0.3127]
[1759703277120,0.88576243,4513.0,4512.9,0.223]
[1759703277924,0.88576243,4513.0,4512.9,0.9609]
[1759703277925,0.21266243,4513.0,4512.9,0.9609]
[1759703278125,0.00236243,4513.0,4512.9,0.9609]
[1759703280928,1.54569709,4513.0,4512.9,0.9599]
[1759703282027,1.22359709,4513.0,4512.9,0.9599]
[1759703283824,0.43736243,4513.0,4512.9,0.9599]
[1759703284031,0.43736243,4513.0,4512.9,2.53441879]
[1759703284327,0.75946243,4513.0,4512.9,0.9599]
[1759703286324,0.75946243,4513.0,4512.9,2.53441879]
[1759703286823,0.75946243,4513.0,4512.9,0.9599]
[1759703287028,0.75946243,4513.0,4512.9,0.7379]
[1759703287230,0.75946243,4513.0,4512.9,2.31241879]
[1759703287423,0.75946243,4513.0,4512.9,2.53441879]
[1759703289524,0.89226243,4513.0,4512.9,1.57451879]
[1759703289729,0.89226243,4513.0,4512.9,1.79651879]
[1759703290328,0.89226243,4513.0,4512.9,0.222]
[1759703290530,0.89226243,4513.0,4512.9,0.5347]
[1759703291029,0.89226243,4513.0,4512.9,0.7421]
[1759703291532,0.75946243,4513.0,4512.9,2.31661879]
[1759703291730,0.75946243,4513.0,4512.9,0.7421]
[1759703292125,0.75946243,4513.0,4512.9,0.5201]
[1759703292321,0.75946243,4513.0,4512.7,1.57451879]
[1759703292322,0.3221,4512.8,4512.7,1.57451879]
[1759703292528,1.54333466,4512.8,4512.7,0.222]
[1759703292832,4.75113466,4512.8,4512.7,0.222]
[1759703296334,4.75113466,4512.8,4512.7,0.7421]
[1759703296934,4.75113466,4512.8,4512.7,0.222]
[1759703297132,4.9080456,4512.8,4512.7,0.222]
[1759703297333,1.26760803,4513.0,4512.9,0.4252]
[1759703297532,1.47860803,4513.0,4512.9,0.763]
[1759703297937,1.69940803,4513.0,4512.9,0.763]
[1759703299634,0.75626243,4513.0,4512.9,0.763]
[1759703303436,0.21336243,4513.0,4512.9,0.763]
[1759703305236,0.75866243,4513.0,4512.9,0.763]
[1759703305831,1.82590803,4513.0,4512.9,0.222]
[1759703306032,1.82590803,4513.0,4512.0,3.73461]
[1759703306033,0.4318,4512.5,4512.4,1.57451879]
[1759703306237,5.0313456,4512.5,4512.4,0.222]
[1759703306436,5.4301156,4512.5,4512.4,0.222]
[1759703306632,5.4301156,4512.5,4512.4,0.7867]
[1759703306834,5.0313456,4512.5,4512.4,0.7867]
[1759703307038,4.9072456,4512.5,4512.4,1.0072]
[1759703307436,4.9072456,4512.5,4512.4,0.7852]
[1759703307636,1.6994456,4512.5,4512.4,1.0072]
[1759703308437,1.6994456,4512.5,4512.4,0.7852]
[1759703308741,1.6994456,4512.5,4512.4,1.0072]
[1759703311944,4.9072456,4512.5,4512.4,1.0072]
[1759703320752,4.9072456,4512.5,4512.4,0.7852]
[1759703320948,4.9072456,4512.5,4512.4,0.5598]
[1759703321250,0.5433,4512.1,4512.0,1.57451879]
[1759703321452,1.27591,4512.0,4511.9,1.57451879]
[1759703321651,1.27591,4512.0,4511.9,0.222]
[1759703325447,4.48371,4512.0,4511.9,0.222]
[1759703325847,0.39884,4511.7,4511.6,1.57451879]
[1759703326052,2.0957856,4511.7,4511.6,2.11131879]
[1759703326350,2.0957856,4511.7,4511.6,0.7588]
[1759703326550,2.0957856,4511.7,4511.6,0.971]
[1759703327053,1.6969456,4511.7,4511.6,0.971]
[1759703329551,3.92271,4512.0,4511.9,0.7418]
[1759703329759,0.2207,4512.0,4511.9,1.36262]
[1759703329946,0.9431456,4512.2,4512.0,0.1355]
[1759703329947,0.3988,4512.2,4512.0,0.1355]
[1759703330152,0.2207,4512.2,4512.1,0.7418]
[1759703331861,0.5368,4512.2,4512.1,0.7418]
[1759703342362,0.7572,4512.2,4512.1,0.7418]
[1759703344559,1.7003456,4512.2,4512.1,0.3145]
[1759703344755,0.7572,4511.8,4511.7,1.57451879]
[1759703344957,0.39887,4511.3,4511.2,1.57451879]
[1759703345159,4.36387,4511.3,4511.2,0.222]
[1759703345352,0.3989,4511.0,4510.9,1.57451879]
[1759703345558,1.2872,4511.0,4510.9,2.00591879]
[1759703346162,1.2872,4511.0,4510.9,0.4314]
[1759703348967,1.2872,4511.0,4510.9,0.2094]
[1759703349265,1.15613,4510.7,4510.6,0.2094]
[1759703349467,1.15613,4510.7,4510.6,0.6493]
[1759703349864,1.15613,4510.7,4510.6,0.8259]
[1759703350571,1.15613,4510.7,4510.6,0.6039]
[1759703350770,1.15613,4510.7,4510.6,0.8259]
[1759703350964,1.15613,4510.7,4510.6,0.6039]
[1759703351164,1.15613,4510.7,4510.6,0.8259]
[1759703351969,1.15613,4510.7,4510.6,0.6039]
[1759703352565,1.15613,4510.7,4510.6,0.8259]
[1759703353779,1.15613,4510.7,4510.6,0.6493]
[1759703353979,1.15613,4510.7,4510.6,0.8259]
[1759703355074,1.15613,4510.7,4510.6,0.6039]
[1759703355275,0.93573,4510.7,4510.6,0.8259]
[1759703355975,0.71503,4510.7,4510.6,0.6039]
[1759703356278,0.9431456,4511.9,4511.0,0.6039]
[1759703356480,0.97101,4512.0,4511.9,0.4273]
[1759703356682,0.97101,4512.0,4511.9,0.6493]
[1759703356980,1.28711,4512.0,4511.9,0.6493]
[1759703359086,2.07316163,4512.0,4511.9,0.6493]
[1759703359681,2.07316163,4512.0,4511.9,0.222]
[1759703359881,1.13754,4511.7,4511.6,0.4328]
[1759703360081,1.13754,4511.7,4511.6,0.8315]
[1759703360082,0.7387,4511.7,4511.6,0.8315]
[1759703360382,0.5268,4511.7,4511.6,0.8315]
[1759703360979,1.31285163,4511.7,4511.6,0.6548]
[1759703361279,0.8623,4511.5,4511.4,1.58770089]
[1759703361483,0.39888,4511.2,4511.1,3.2078]
[1759703361781,1.92363163,4511.2,4511.1,3.6445]
[1759703362486,1.52475163,4511.2,4511.1,3.6445]
[1759703362679,1.52475163,4511.2,4511.1,3.8626]
[1759703365386,0.5268,4511.2,4511.1,0.8315]
[1759703366585,0.5268,4511.2,4511.1,0.6548]
[1759703367381,0.5268,4511.2,4511.1,0.8315]
[1759703368886,0.5268,4511.2,4511.1,0.6548]
[1759703369381,0.5268,4511.2,4511.1,2.24250089]
[1759703369782,0.5268,4511.2,4511.1,0.6548]
[1759703370184,0.5268,4511.2,4511.1,2.24250089]
[1759703370588,0.5268,4511.2,4511.1,0.6548]
[1759703370887,0.7387,4511.2,4511.1,0.6548]
[1759703371187,0.7387,4511.2,4511.1,2.24250089]
[1759703372591,1.52475163,4511.2,4511.1,2.02050089]
[1759703372785,0.1334,4511.0,4510.9,1.58770089]
[1759703372987,4.88855163,4511.0,4510.9,0.222]
[1759703374381,0.4458,4510.7,4510.6,1.58770089]
[1759703374588,1.54735163,4510.7,4510.6,1.80970089]
[1759703374785,1.94628163,4510.7,4510.6,1.58770089]
[1759703375086,1.63078163,4510.7,4510.5,1.58770089]
[1759703375290,0.7613,4510.6,4510.5,1.58770089]
[1759703375486,0.7613,4510.6,4510.5,1.80970089]
[1759703375686,0.7613,4510.6,4510.5,1.58770089]
[1759703376090,0.7613,4510.6,4510.5,1.80970089]
[1759703377793,0.7613,4510.6,4510.5,1.58770089]
[1759703377993,0.7613,4510.6,4510.5,1.80970089]
[1759703378483,0.7613,4510.6,4510.5,2.01750089]
[1759703378684,0.7613,4510.6,4510.5,2.22400089]
[1759703379392,0.7613,4510.6,4510.5,1.80970089]
[1759703380094,0.7613,4510.6,4510.5,2.01750089]
[1759703382996,0.7613,4510.6,4510.5,2.22400089]
[1759703383999,0.7613,4510.6,4510.5,2.00200089]
[1759703384298,0.7613,4510.6,4510.5,2.22400089]
[1759703386600,0.7613,4510.6,4510.5,2.00200089]
[1759703386899,0.7613,4510.6,4510.5,2.22400089]
[1759703387498,0.7613,4510.6,4510.5,0.6363]
[1759703387700,1.30264,4510.5,4510.4,1.59055619]
[1759703387901,4.51044,4510.5,4510.4,1.81255619]
[1759703388393,4.51044,4510.5,4510.4,2.03175619]
[1759703389194,4.1115,4510.5,4510.4,2.03175619]
[1759703390992,4.1115,4510.5,4510.4,1.80975619]
[1759703391298,4.1115,4510.5,4510.4,2.03175619]
[1759703392702,4.1115,4510.5,4510.4,0.4440553]
[1759703393104,4.1115,4510.5,4510.4,2.03372817]
[1759703393305,4.1115,4510.5,4510.4,0.4440553]
[1759703393503,4.1115,4510.5,4510.4,0.0028553]
[1759703394598,4.1115,4510.5,4510.4,0.2248553]
[1759703394907,4.1115,4510.5,4510.4,0.0028553]
[1759703395201,4.1115,4510.5,4510.4,0.2248553]
[1759703395698,4.1115,4510.5,4510.4,0.0028553]
[1759703395898,4.1115,4510.5,4510.4,0.2248553]
[1759703396099,4.1115,4510.5,4510.4,0.0028553]
[1759703397104,4.1115,4510.5,4510.4,0.2248553]
[1759703398007,4.1115,4510.5,4510.4,0.0028553]
[1759703400209,4.1115,4510.5,4510.4,0.2220553]
[1759703400602,5.29649163,4510.5,4510.4,0.0028553]
[1759703400802,5.29649163,4510.5,4510.4,0.2248553]
[1759703401406,5.29649163,4510.5,4510.4,0.0028553]
[1759703401601,6.08254326,4510.5,4510.4,0.0028553]
[1759703401804,10.68360326,4510.5,4510.0,1.58977461]
[1759703402097,0.39902,4509.6,4509.4,1.58977461]
[1759703402306,0.39902,4509.6,4509.1,3.2078]
[1759703402307,0.7679,4509.2,4509.1,3.2078]
[1759703402510,1.55395163,4509.2,4509.1,3.649]
[1759703403005,1.55606928,4509.2,4509.1,0.44353286]
[1759703403704,1.55606928,4509.2,4509.1,0.22153286]
[1759703404005,1.55606928,4509.2,4509.1,1.59025287]
[1759703404204,1.55606928,4509.2,4509.1,0.22433286]
[1759703404401,1.55606928,4509.2,4509.1,0.00233286]
[1759703404602,1.55606928,4509.2,4509.1,0.22433286]
[1759703406000,1.55606928,4509.2,4509.1,0.44353286]
[1759703406214,1.55606928,4509.2,4509.1,0.22153286]
[1759703406397,1.55606928,4509.2,4509.1,0.44353286]
[1759703406904,0.77001765,4509.2,4509.1,0.65073286]
[1759703407097,0.00211765,4509.2,4509.1,0.82733286]
[1759703407906,0.00211765,4509.2,4509.1,5.82733286]
[1759703408601,0.00211765,4509.2,4509.1,9.03513286]
[1759703412007,0.1358,4510.0,4509.7,0.603]
[1759703412206,0.3355,4510.0,4509.9,0.603]
[1759703412407,0.3355,4510.0,4509.9,0.825]
[1759703412608,0.3355,4510.2,4510.1,0.603]
[1759703413108,0.55063099,4510.2,4510.1,0.603]
[1759703414311,0.55063099,4510.2,4510.1,0.4264]
[1759703416204,3.97783099,4510.2,4509.9,0.222]
[1759703416405,1.68975163,4510.0,4509.9,0.2192]
[1759703416610,1.68975163,4510.0,4509.9,0.4412]
[1759703417210,1.68975163,4510.0,4509.9,0.6484]
[1759703417810,0.3355,4510.0,4509.9,0.8251]
[1759703418313,0.6755,4510.0,4509.9,0.8251]
[1759703418509,0.6755,4510.0,4509.9,0.6484]
[1759703419314,0.6755,4510.0,4509.9,0.8251]
[1759703421306,0.6755,4510.0,4509.9,0.6484]
[1759703422614,0.6755,4510.0,4509.9,0.8251]
[1759703422920,0.4665,4510.0,4509.9,0.8251]
[1759703424519,0.8891,4510.0,4509.9,0.6484]
[1759703425217,0.8891,4510.0,4509.9,0.8251]
[1759703426622,0.8891,4510.0,4509.9,0.6484]
[1759703430820,0.3407,4509.9,4509.8,0.399]
[1759703431024,0.7633,4509.9,4509.8,0.399]
[1759703431214,0.7633,4509.9,4509.8,0.621]
[1759703431419,0.7633,4509.9,4509.8,0.222]
[1759703432119,0.7633,4509.9,4509.7,0.39901]
[1759703432319,0.7633,4509.9,4509.8,0.222]
[1759703432715,0.7633,4509.9,4509.8,0.4491]
[1759703433921,0.7633,4509.9,4509.8,0.222]
[1759703435228,0.7633,4509.9,4509.8,0.427]
[1759703435724,0.7633,4509.9,4509.8,0.6504]
[1759703436029,0.5498,4509.9,4509.8,0.8272]
[1759703436228,0.7682,4509.9,4509.8,0.6504]